[Event "Titled Tuesday Blitz March 08 Late 2022"]
[White "Osmonbekov, Talaibek"]
[Black "Dias, Joao Batista"]
[WhiteFideId "2017253"]
[BlackFideId "2108240"]
[WhiteElo "2135"]
[BlackElo "1898"]
[Result "1-0"]
[Round "07"]
[TimeControl "180+1"]
[Date "2022.03.09"]
[WhiteClock "0:01:10"]
[BlackClock "0:00:52"]

1. Nf3 {[%clk 0:03:00]}  Nf6 {[%clk 0:02:55]} 2. d4 {[%clk 0:03:00]}  d5 {[%clk 0:02:55]} 3. Nc3 {[%clk 0:03:00]}  c6 {[%clk 0:02:54]} 4. Bf4 {[%clk 0:03:01]}  e6 {[%clk 0:02:52]} 5. e3 {[%clk 0:03:01]}  Bd6 {[%clk 0:02:51]} 6. Bd3 {[%clk 0:03:00]}  Bxf4 {[%clk 0:02:51]} 7. exf4 {[%clk 0:03:01]}  Nbd7 {[%clk 0:02:51]} 8. O-O {[%clk 0:03:01]}  O-O {[%clk 0:02:49]} 9. Ne5 {[%clk 0:02:57]}  g6 {[%clk 0:02:48]} 10. Re1 {[%clk 0:02:51]}  Qe7 {[%clk 0:02:17]} 11. Ne2 {[%clk 0:02:49]}  Qd6 {[%clk 0:02:17]} 12. c3 {[%clk 0:02:42]}  a5 {[%clk 0:02:14]} 13. a4 {[%clk 0:02:36]}  Kg7 {[%clk 0:02:05]} 14. h3 {[%clk 0:02:33]}  b6 {[%clk 0:02:02]} 15. g4 {[%clk 0:02:31]}  Ba6 {[%clk 0:02:01]} 16. Ng3 {[%clk 0:02:23]}  Bxd3 {[%clk 0:01:58]} 17. Qxd3 {[%clk 0:02:24]}  Ra7 {[%clk 0:01:58]} 18. g5 {[%clk 0:02:16]}  Ne8 {[%clk 0:01:51]} 19. f5 {[%clk 0:02:13]}  exf5 {[%clk 0:01:51]} 20. Qxf5 {[%clk 0:02:11]}  gxf5 {[%clk 0:01:49]} 21. Nxf5+ {[%clk 0:02:10]}  Kg8 {[%clk 0:01:48]} 22. Nxd6 {[%clk 0:02:08]}  Nxd6 {[%clk 0:01:48]} 23. Nxc6 {[%clk 0:02:08]}  Rc7 {[%clk 0:01:46]} 24. Ne7+ {[%clk 0:02:08]}  Kg7 {[%clk 0:01:46]} 25. Nxd5 {[%clk 0:02:08]}  Rc6 {[%clk 0:01:38]} 26. Re7 {[%clk 0:02:05]}  Nb8 {[%clk 0:01:26]} 27. Rae1 {[%clk 0:01:57]}  Nf5 {[%clk 0:01:25]} 28. Rb7 {[%clk 0:01:54]}  Nd7 {[%clk 0:01:22]} 29. Nf4 {[%clk 0:01:43]}  h6 {[%clk 0:01:14]} 30. Rxd7 {[%clk 0:01:39]}  hxg5 {[%clk 0:01:12]} 31. Ne6+ {[%clk 0:01:39]}  Rxe6 {[%clk 0:01:08]} 32. Rxe6 {[%clk 0:01:39]}  Nh4 {[%clk 0:01:04]} 33. Rxb6 {[%clk 0:01:38]}  Re8 {[%clk 0:01:01]} 34. Kf1 {[%clk 0:01:34]}  Nf3 {[%clk 0:00:59]} 35. Rbb7 {[%clk 0:01:30]}  Re1+ {[%clk 0:00:53]} 36. Kg2 {[%clk 0:01:29]}  Nh4+ {[%clk 0:00:53]} 37. Kh2 {[%clk 0:01:28]}  Nf3+ {[%clk 0:00:52]} 38. Kg3 {[%clk 0:01:28]}  Nh4 {[%clk 0:00:52]} 39. Rxf7+ {[%clk 0:01:27]}  Kg6 {[%clk 0:00:52]} 40. Rg7+ {[%clk 0:01:15]}  Kh6 {[%clk 0:00:51]} 41. Rh7+ {[%clk 0:01:14]}  Kg6 {[%clk 0:00:52]} 42. Rxh4 {[%clk 0:01:14]}  gxh4+ {[%clk 0:00:52]} 43. Kxh4 {[%clk 0:01:14]}  Re2 {[%clk 0:00:52]} 44. Kg3 {[%clk 0:01:10]} 1-0


[Site "https://www.chess.com"]

[Event "Titled Tuesday Blitz March 08 Late 2022"]
[White "Ozates, Tuna"]
[Black "Baker, Chris W"]
[WhiteFideId "6354521"]
[BlackFideId "401676"]
[WhiteElo "1887"]
[BlackElo "2268"]
[Result "1-0"]
[Round "07"]
[TimeControl "180+1"]
[Date "2022.03.09"]
[WhiteClock "0:02:23"]
[BlackClock "0:01:33"]

1. Nf3 {[%clk 0:03:00]}  e6 {[%clk 0:02:59]} 2. c4 {[%clk 0:03:00]}  f5 {[%clk 0:02:58]} 3. Nc3 {[%clk 0:02:58]}  Nf6 {[%clk 0:02:58]} 4. d3 {[%clk 0:02:58]}  Be7 {[%clk 0:02:57]} 5. e4 {[%clk 0:02:58]}  d6 {[%clk 0:02:51]} 6. e5 {[%clk 0:02:56]}  Ng4 {[%clk 0:02:44]} 7. exd6 {[%clk 0:02:50]}  cxd6 {[%clk 0:02:44]} 8. h3 {[%clk 0:02:50]}  Nf6 {[%clk 0:02:44]} 9. d4 {[%clk 0:02:51]}  O-O {[%clk 0:02:43]} 10. Bd3 {[%clk 0:02:51]}  Nc6 {[%clk 0:02:43]} 11. d5 {[%clk 0:02:51]}  Ne5 {[%clk 0:02:38]} 12. O-O {[%clk 0:02:51]}  Nxd3 {[%clk 0:02:36]} 13. Qxd3 {[%clk 0:02:50]}  e5 {[%clk 0:02:36]} 14. Ng5 {[%clk 0:02:50]}  a6 {[%clk 0:02:25]} 15. f4 {[%clk 0:02:50]}  e4 {[%clk 0:02:22]} 16. Qd4 {[%clk 0:02:48]}  Qe8 {[%clk 0:02:11]} 17. Be3 {[%clk 0:02:35]}  h6 {[%clk 0:02:09]} 18. Ne6 {[%clk 0:02:36]}  Bxe6 {[%clk 0:02:09]} 19. dxe6 {[%clk 0:02:36]}  Rc8 {[%clk 0:02:07]} 20. Nd5 {[%clk 0:02:36]}  Nxd5 {[%clk 0:02:05]} 21. cxd5 {[%clk 0:02:36]}  Qb5 {[%clk 0:01:57]} 22. Rac1 {[%clk 0:02:36]}  Bf6 {[%clk 0:01:56]} 23. Qd2 {[%clk 0:02:35]}  Qxb2 {[%clk 0:01:36]} 24. Qxb2 {[%clk 0:02:29]}  Bxb2 {[%clk 0:01:35]} 25. Rb1 {[%clk 0:02:30]}  Rc2 {[%clk 0:01:34]} 26. Rf2 {[%clk 0:02:23]}  Rfc8 {[%clk 0:01:33]} 27. Rxb2 {[%clk 0:02:23]} 1-0


[Site "https://www.chess.com"]

[Event "Titled Tuesday Blitz March 08 Late 2022"]
[White "P., Komal Kishore"]
[Black "Bibasa, Bob"]
[WhiteFideId "5016703"]
[BlackFideId "10000240"]
[WhiteElo "2158"]
[BlackElo "2056"]
[Result "0-1"]
[Round "07"]
[TimeControl "180+1"]
[Date "2022.03.09"]
[WhiteClock "0:00:01"]
[BlackClock "0:01:17"]

1. e4 {[%clk 0:03:00]}  c5 {[%clk 0:03:00]} 2. Nf3 {[%clk 0:02:59]}  d6 {[%clk 0:03:00]} 3. Bb5+ {[%clk 0:02:59]}  Nd7 {[%clk 0:03:00]} 4. c3 {[%clk 0:02:56]}  g6 {[%clk 0:02:59]} 5. d4 {[%clk 0:02:53]}  cxd4 {[%clk 0:02:54]} 6. cxd4 {[%clk 0:02:53]}  Nf6 {[%clk 0:02:54]} 7. Nc3 {[%clk 0:02:52]}  a6 {[%clk 0:02:55]} 8. Bd3 {[%clk 0:02:49]}  Qc7 {[%clk 0:02:48]} 9. O-O {[%clk 0:02:48]}  Bg7 {[%clk 0:02:48]} 10. Re1 {[%clk 0:02:46]}  O-O {[%clk 0:02:47]} 11. e5 {[%clk 0:02:45]}  Ne8 {[%clk 0:02:45]} 12. e6 {[%clk 0:02:40]}  fxe6 {[%clk 0:02:45]} 13. Ng5 {[%clk 0:02:33]}  Ndf6 {[%clk 0:02:45]} 14. Nxe6 {[%clk 0:02:28]}  Bxe6 {[%clk 0:02:45]} 15. Rxe6 {[%clk 0:02:27]}  Qd7 {[%clk 0:02:45]} 16. Qe2 {[%clk 0:02:25]}  Rf7 {[%clk 0:02:43]} 17. Bc4 {[%clk 0:02:22]}  d5 {[%clk 0:02:39]} 18. Bb3 {[%clk 0:02:18]}  Nc7 {[%clk 0:02:39]} 19. Re3 {[%clk 0:01:39]}  Raf8 {[%clk 0:02:28]} 20. h3 {[%clk 0:01:35]}  Nh5 {[%clk 0:02:21]} 21. Rd3 {[%clk 0:00:30]}  Nf4 {[%clk 0:01:52]} 22. Bxf4 {[%clk 0:00:29]}  Rxf4 {[%clk 0:01:53]} 23. Rad1 {[%clk 0:00:26]}  e6 {[%clk 0:01:40]} 24. f3 {[%clk 0:00:24]}  b5 {[%clk 0:01:34]} 25. a3 {[%clk 0:00:22]}  a5 {[%clk 0:01:31]} 26. Qe3 {[%clk 0:00:16]}  b4 {[%clk 0:01:30]} 27. axb4 {[%clk 0:00:14]}  axb4 {[%clk 0:01:30]} 28. Ne2 {[%clk 0:00:12]}  R4f7 {[%clk 0:01:29]} 29. f4 {[%clk 0:00:11]}  Nb5 {[%clk 0:01:21]} 30. g4 {[%clk 0:00:10]}  Nd6 {[%clk 0:01:19]} 31. Kg2 {[%clk 0:00:08]}  Ne4 {[%clk 0:01:19]} 32. Ng1 {[%clk 0:00:07]}  Rxf4 {[%clk 0:01:18]} 33. Ne2 {[%clk 0:00:02]}  Rf2+ {[%clk 0:01:18]} 34. Kg1 {[%clk 0:00:01]}  Qd6 {[%clk 0:01:17]} 0-1


[Site "https://www.chess.com"]

[Event "Titled Tuesday Blitz March 08 Late 2022"]
[White "Paravyan, David"]
[Black "Maksimovic, Bojan"]
[WhiteFideId "4194985"]
[BlackFideId "14408120"]
[WhiteElo "2569"]
[BlackElo "2448"]
[Result "1-0"]
[Round "07"]
[TimeControl "180+1"]
[Date "2022.03.08"]
[WhiteClock "0:00:16"]
[BlackClock "0:00:03"]

1. e3 {[%clk 0:02:51]}  e5 {[%clk 0:02:57]} 2. d4 {[%clk 0:02:49]}  e4 {[%clk 0:02:56]} 3. c4 {[%clk 0:02:49]}  f5 {[%clk 0:02:54]} 4. Nc3 {[%clk 0:02:49]}  Nf6 {[%clk 0:02:54]} 5. Nh3 {[%clk 0:02:50]}  g6 {[%clk 0:02:51]} 6. Be2 {[%clk 0:02:49]}  Bg7 {[%clk 0:02:51]} 7. Nf4 {[%clk 0:02:49]}  Nc6 {[%clk 0:02:21]} 8. h4 {[%clk 0:02:49]}  Ne7 {[%clk 0:02:22]} 9. h5 {[%clk 0:02:48]}  O-O {[%clk 0:02:22]} 10. Qb3 {[%clk 0:02:45]}  d6 {[%clk 0:01:52]} 11. Bd2 {[%clk 0:02:44]}  c6 {[%clk 0:01:49]} 12. Qa3 {[%clk 0:02:34]}  g5 {[%clk 0:01:12]} 13. h6 {[%clk 0:02:34]}  Bh8 {[%clk 0:01:12]} 14. Nh3 {[%clk 0:02:33]}  g4 {[%clk 0:01:02]} 15. Nf4 {[%clk 0:02:33]}  Ng6 {[%clk 0:01:00]} 16. Nh5 {[%clk 0:02:18]}  Nxh5 {[%clk 0:00:42]} 17. Rxh5 {[%clk 0:02:19]}  Qe7 {[%clk 0:00:43]} 18. O-O-O {[%clk 0:02:16]}  Be6 {[%clk 0:00:41]} 19. Kb1 {[%clk 0:02:11]}  c5 {[%clk 0:00:37]} 20. Nd5 {[%clk 0:02:06]}  Bxd5 {[%clk 0:00:37]} 21. cxd5 {[%clk 0:02:02]}  b6 {[%clk 0:00:37]} 22. Bc3 {[%clk 0:01:54]}  Rac8 {[%clk 0:00:33]} 23. Rhh1 {[%clk 0:01:48]}  cxd4 {[%clk 0:00:32]} 24. Bxd4 {[%clk 0:01:48]}  Bxd4 {[%clk 0:00:30]} 25. Rxd4 {[%clk 0:01:49]}  Rc5 {[%clk 0:00:30]} 26. Rc4 {[%clk 0:01:46]}  Rfc8 {[%clk 0:00:28]} 27. Qa6 {[%clk 0:01:41]}  Rxc4 {[%clk 0:00:23]} 28. Bxc4 {[%clk 0:01:41]}  Qc7 {[%clk 0:00:23]} 29. Bb3 {[%clk 0:01:36]}  Ne5 {[%clk 0:00:21]} 30. a3 {[%clk 0:01:34]}  Nd3 {[%clk 0:00:20]} 31. f3 {[%clk 0:01:34]}  Nc5 {[%clk 0:00:12]} 32. Qc4 {[%clk 0:01:29]}  Nd3 {[%clk 0:00:11]} 33. Qd4 {[%clk 0:01:26]}  Qe7 {[%clk 0:00:04]} 34. fxe4 {[%clk 0:01:23]}  fxe4 {[%clk 0:00:04]} 35. Rh4 {[%clk 0:01:17]}  Qe5 {[%clk 0:00:02]} 36. Rxg4+ {[%clk 0:01:17]}  Kh8 {[%clk 0:00:03]} 37. Qxe5+ {[%clk 0:01:13]}  Nxe5 {[%clk 0:00:04]} 38. Rg7 {[%clk 0:01:13]}  Rf8 {[%clk 0:00:02]} 39. Rxa7 {[%clk 0:01:06]}  Ng4 {[%clk 0:00:02]} 40. Bc2 {[%clk 0:01:05]}  Nxh6 {[%clk 0:00:03]} 41. Bxe4 {[%clk 0:01:05]}  Nf7 {[%clk 0:00:04]} 42. a4 {[%clk 0:01:04]}  Kg7 {[%clk 0:00:04]} 43. Rb7 {[%clk 0:01:03]}  Re8 {[%clk 0:00:04]} 44. Bf5 {[%clk 0:01:03]}  Kf6 {[%clk 0:00:04]} 45. Be6 {[%clk 0:01:03]}  Ne5 {[%clk 0:00:02]} 46. Rxb6 {[%clk 0:01:04]}  Nc4 {[%clk 0:00:02]} 47. Rc6 {[%clk 0:01:03]}  Nxe3 {[%clk 0:00:02]} 48. Rxd6 {[%clk 0:01:03]}  Ke5 {[%clk 0:00:03]} 49. Rb6 {[%clk 0:00:59]}  Nc4 {[%clk 0:00:02]} 50. Rb4 {[%clk 0:00:58]}  Nd6 {[%clk 0:00:02]} 51. a5 {[%clk 0:00:53]}  Ra8 {[%clk 0:00:03]} 52. Ra4 {[%clk 0:00:53]}  Nb7 {[%clk 0:00:03]} 53. b4 {[%clk 0:00:50]}  Kd4 {[%clk 0:00:04]} 54. a6 {[%clk 0:00:48]}  Nd6 {[%clk 0:00:03]} 55. Bd7 {[%clk 0:00:40]}  Kc4 {[%clk 0:00:03]} 56. Kc2 {[%clk 0:00:26]}  Ra7 {[%clk 0:00:03]} 57. Bc6 {[%clk 0:00:26]}  Nf5 {[%clk 0:00:01]} 58. b5+ {[%clk 0:00:25]}  Kc5 {[%clk 0:00:02]} 59. Kc3 {[%clk 0:00:26]}  Nd6 {[%clk 0:00:03]} 60. Kb3 {[%clk 0:00:20]}  h5 {[%clk 0:00:03]} 61. Rb4 {[%clk 0:00:15]}  Kb6 {[%clk 0:00:03]} 62. Rf4 {[%clk 0:00:15]}  Rg7 {[%clk 0:00:03]} 63. Rf6 {[%clk 0:00:14]}  Ne4 {[%clk 0:00:02]} 64. Re6 {[%clk 0:00:14]}  Nc5+ {[%clk 0:00:03]} 65. Kc4 {[%clk 0:00:14]}  Nxe6 {[%clk 0:00:03]} 66. dxe6 {[%clk 0:00:15]}  Re7 {[%clk 0:00:01]} 67. Kd5 {[%clk 0:00:15]}  Rg7 {[%clk 0:00:01]} 68. Kd6 {[%clk 0:00:16]}  Rg6 {[%clk 0:00:02]} 69. Kd7 {[%clk 0:00:15]}  h4 {[%clk 0:00:02]} 70. e7 {[%clk 0:00:15]}  Rg7 {[%clk 0:00:03]} 71. Kd8 {[%clk 0:00:16]}  h3 {[%clk 0:00:02]} 72. gxh3 {[%clk 0:00:17]}  Rg8+ {[%clk 0:00:01]} 73. e8=Q {[%clk 0:00:17]}  Rg3 {[%clk 0:00:01]} 74. Kc8 {[%clk 0:00:16]}  Rc3 {[%clk 0:00:01]} 75. Kb8 {[%clk 0:00:16]}  Kc5 {[%clk 0:00:01]} 76. Qe5+ {[%clk 0:00:16]}  Kb4 {[%clk 0:00:02]} 77. Qxc3+ {[%clk 0:00:16]}  Ka4 {[%clk 0:00:03]} 1-0


[Site "https://www.chess.com"]

[Event "Titled Tuesday Blitz March 08 Late 2022"]
[White "Petrova, Irina"]
[Black "Silva, Miguel Antonio Neto"]
[WhiteFideId "14124122"]
[BlackFideId "1911929"]
[WhiteElo "1993"]
[BlackElo "2204"]
[Result "1-0"]
[Round "07"]
[TimeControl "180+1"]
[Date "2022.03.09"]
[WhiteClock "0:01:35"]
[BlackClock "0:00:58"]

1. e4 {[%clk 0:03:00]}  c5 {[%clk 0:02:59]} 2. Nf3 {[%clk 0:03:00]}  d6 {[%clk 0:02:58]} 3. Bb5+ {[%clk 0:03:00]}  Nd7 {[%clk 0:02:57]} 4. O-O {[%clk 0:02:59]}  Nf6 {[%clk 0:02:56]} 5. Re1 {[%clk 0:02:59]}  e6 {[%clk 0:02:56]} 6. c3 {[%clk 0:02:58]}  a6 {[%clk 0:02:56]} 7. Bf1 {[%clk 0:02:58]}  Be7 {[%clk 0:02:54]} 8. d4 {[%clk 0:02:58]}  cxd4 {[%clk 0:02:55]} 9. cxd4 {[%clk 0:02:59]}  O-O {[%clk 0:02:51]} 10. Nc3 {[%clk 0:02:59]}  b5 {[%clk 0:02:49]} 11. e5 {[%clk 0:02:58]}  Nd5 {[%clk 0:02:46]} 12. Nxd5 {[%clk 0:02:58]}  exd5 {[%clk 0:02:46]} 13. Bf4 {[%clk 0:02:56]}  dxe5 {[%clk 0:02:43]} 14. Nxe5 {[%clk 0:02:57]}  Nxe5 {[%clk 0:02:41]} 15. Bxe5 {[%clk 0:02:56]}  Bf6 {[%clk 0:02:40]} 16. Bd3 {[%clk 0:02:55]}  Be6 {[%clk 0:02:34]} 17. Qh5 {[%clk 0:02:49]}  g6 {[%clk 0:02:33]} 18. Qh6 {[%clk 0:02:47]}  Bxe5 {[%clk 0:02:32]} 19. Rxe5 {[%clk 0:02:48]}  Qf6 {[%clk 0:02:31]} 20. Rae1 {[%clk 0:02:45]}  Rfe8 {[%clk 0:02:13]} 21. h3 {[%clk 0:02:32]}  Bd7 {[%clk 0:02:02]} 22. Rxe8+ {[%clk 0:02:29]}  Rxe8 {[%clk 0:02:00]} 23. Rxe8+ {[%clk 0:02:29]}  Bxe8 {[%clk 0:02:01]} 24. Qe3 {[%clk 0:02:28]}  Kf8 {[%clk 0:01:53]} 25. Qe5 {[%clk 0:02:25]}  Qxe5 {[%clk 0:01:40]} 26. dxe5 {[%clk 0:02:26]}  f6 {[%clk 0:01:39]} 27. exf6 {[%clk 0:02:25]}  Kf7 {[%clk 0:01:38]} 28. f4 {[%clk 0:02:23]}  Kxf6 {[%clk 0:01:39]} 29. Kf2 {[%clk 0:02:24]}  d4 {[%clk 0:01:23]} 30. Be4 {[%clk 0:02:23]}  Bf7 {[%clk 0:01:22]} 31. b3 {[%clk 0:02:22]}  a5 {[%clk 0:01:21]} 32. Ke2 {[%clk 0:02:22]}  a4 {[%clk 0:01:21]} 33. bxa4 {[%clk 0:02:16]}  bxa4 {[%clk 0:01:21]} 34. a3 {[%clk 0:02:16]}  Bc4+ {[%clk 0:01:20]} 35. Bd3 {[%clk 0:02:09]}  Bd5 {[%clk 0:01:18]} 36. g3 {[%clk 0:02:04]}  h6 {[%clk 0:01:17]} 37. Bb5 {[%clk 0:02:03]}  g5 {[%clk 0:01:14]} 38. fxg5+ {[%clk 0:02:00]}  hxg5 {[%clk 0:01:15]} 39. Bxa4 {[%clk 0:01:54]}  Ke5 {[%clk 0:01:14]} 40. Bd7 {[%clk 0:01:48]}  Ke4 {[%clk 0:01:10]} 41. a4 {[%clk 0:01:45]}  Bc4+ {[%clk 0:01:10]} 42. Kd2 {[%clk 0:01:45]}  Kf3 {[%clk 0:01:10]} 43. h4 {[%clk 0:01:39]}  g4 {[%clk 0:01:01]} 44. h5 {[%clk 0:01:38]}  Kxg3 {[%clk 0:01:02]} 45. h6 {[%clk 0:01:38]}  Bg8 {[%clk 0:01:01]} 46. a5 {[%clk 0:01:37]}  Kf4 {[%clk 0:00:58]} 47. a6 {[%clk 0:01:36]}  Kg5 {[%clk 0:00:58]} 48. a7 {[%clk 0:01:35]} 1-0


[Site "https://www.chess.com"]

[Event "Titled Tuesday Blitz March 08 Late 2022"]
[White "Petrovic, Aleksa"]
[Black "Szpar, Milosz"]
[WhiteFideId "967629"]
[BlackFideId "1184989"]
[WhiteElo "2245"]
[BlackElo "2447"]
[Result "0-1"]
[Round "07"]
[TimeControl "180+1"]
[Date "2022.03.09"]
[WhiteClock "0:00:04"]
[BlackClock "0:01:46"]

1. d4 {[%clk 0:03:00]}  Nf6 {[%clk 0:02:58]} 2. Nf3 {[%clk 0:03:00]}  g6 {[%clk 0:02:53]} 3. g3 {[%clk 0:02:59]}  Bg7 {[%clk 0:02:54]} 4. Bg2 {[%clk 0:02:59]}  O-O {[%clk 0:02:55]} 5. O-O {[%clk 0:02:59]}  c5 {[%clk 0:02:55]} 6. c4 {[%clk 0:02:58]}  cxd4 {[%clk 0:02:55]} 7. Nxd4 {[%clk 0:02:58]}  Nc6 {[%clk 0:02:55]} 8. Nc2 {[%clk 0:02:57]}  d6 {[%clk 0:02:55]} 9. Nc3 {[%clk 0:02:56]}  Bg4 {[%clk 0:02:55]} 10. h3 {[%clk 0:02:35]}  Be6 {[%clk 0:02:55]} 11. Nd5 {[%clk 0:02:07]}  Rc8 {[%clk 0:02:53]} 12. Be3 {[%clk 0:02:01]}  Ne5 {[%clk 0:02:48]} 13. b3 {[%clk 0:01:56]}  b6 {[%clk 0:02:47]} 14. f4 {[%clk 0:01:50]}  Ned7 {[%clk 0:02:41]} 15. Ndb4 {[%clk 0:01:44]}  Nc5 {[%clk 0:02:22]} 16. Nd4 {[%clk 0:01:33]}  Qd7 {[%clk 0:02:21]} 17. g4 {[%clk 0:01:22]}  Bxg4 {[%clk 0:02:20]} 18. hxg4 {[%clk 0:01:21]}  Nxg4 {[%clk 0:02:21]} 19. Bf2 {[%clk 0:01:05]}  h5 {[%clk 0:02:08]} 20. Bc6 {[%clk 0:00:57]}  Qd8 {[%clk 0:02:05]} 21. Bf3 {[%clk 0:00:53]}  e5 {[%clk 0:02:02]} 22. Ndc6 {[%clk 0:00:47]}  Qd7 {[%clk 0:02:02]} 23. fxe5 {[%clk 0:00:37]}  Nxe5 {[%clk 0:02:02]} 24. Nxe5 {[%clk 0:00:31]}  Bxe5 {[%clk 0:02:03]} 25. Bg2 {[%clk 0:00:26]}  Qg4 {[%clk 0:02:02]} 26. e3 {[%clk 0:00:22]}  Qg5 {[%clk 0:02:01]} 27. Rc1 {[%clk 0:00:19]}  h4 {[%clk 0:02:01]} 28. Qf3 {[%clk 0:00:19]}  f5 {[%clk 0:01:59]} 29. Qh3 {[%clk 0:00:19]}  Kg7 {[%clk 0:01:56]} 30. Bxh4 {[%clk 0:00:19]}  Qh6 {[%clk 0:01:55]} 31. Bf2 {[%clk 0:00:17]}  Qg5 {[%clk 0:01:55]} 32. Qh4 {[%clk 0:00:14]}  Qxh4 {[%clk 0:01:55]} 33. Bxh4 {[%clk 0:00:15]}  Rh8 {[%clk 0:01:56]} 34. Bg5 {[%clk 0:00:14]}  a5 {[%clk 0:01:56]} 35. Nc6 {[%clk 0:00:09]}  Bh2+ {[%clk 0:01:56]} 36. Kf2 {[%clk 0:00:09]}  Nd3+ {[%clk 0:01:57]} 37. Ke2 {[%clk 0:00:09]}  Nxc1+ {[%clk 0:01:58]} 38. Rxc1 {[%clk 0:00:10]}  Rh5 {[%clk 0:01:57]} 39. Bf4 {[%clk 0:00:06]}  Bxf4 {[%clk 0:01:56]} 40. exf4 {[%clk 0:00:07]}  Re8+ {[%clk 0:01:57]} 41. Kf3 {[%clk 0:00:07]}  Rh4 {[%clk 0:01:56]} 42. Nd4 {[%clk 0:00:06]}  Re4 {[%clk 0:01:56]} 43. Ne2 {[%clk 0:00:07]}  Rg4 {[%clk 0:01:56]} 44. Rd1 {[%clk 0:00:06]}  Rxe2 {[%clk 0:01:55]} 45. Kxe2 {[%clk 0:00:06]}  Rxg2+ {[%clk 0:01:55]} 46. Kf3 {[%clk 0:00:07]}  Rxa2 {[%clk 0:01:53]} 47. Rxd6 {[%clk 0:00:08]}  Ra3 {[%clk 0:01:53]} 48. Rxb6 {[%clk 0:00:07]}  a4 {[%clk 0:01:54]} 49. Rb7+ {[%clk 0:00:04]}  Kf6 {[%clk 0:01:54]} 50. Rb6+ {[%clk 0:00:04]}  Ke7 {[%clk 0:01:55]} 51. Rxg6 {[%clk 0:00:04]}  Rxb3+ {[%clk 0:01:45]} 52. Kf2 {[%clk 0:00:03]}  Rb4 {[%clk 0:01:45]} 53. c5 {[%clk 0:00:02]}  Rxf4+ {[%clk 0:01:45]} 54. Ke3 {[%clk 0:00:03]}  Rc4 {[%clk 0:01:45]} 55. Ra6 {[%clk 0:00:03]}  Kd7 {[%clk 0:01:44]} 56. Kf3 {[%clk 0:00:03]}  Kc7 {[%clk 0:01:45]} 57. Ke3 {[%clk 0:00:02]}  Kb7 {[%clk 0:01:45]} 58. Rf6 {[%clk 0:00:02]}  Rxc5 {[%clk 0:01:45]} 59. Kd4 {[%clk 0:00:03]}  Ra5 {[%clk 0:01:45]} 60. Re6 {[%clk 0:00:02]}  a3 {[%clk 0:01:45]} 61. Re1 {[%clk 0:00:03]}  a2 {[%clk 0:01:45]} 62. Ra1 {[%clk 0:00:03]}  Kc6 {[%clk 0:01:46]} 63. Ke3 {[%clk 0:00:04]}  Kd5 {[%clk 0:01:46]} 64. Kd3 {[%clk 0:00:04]}  f4 {[%clk 0:01:46]} 65. Ke2 {[%clk 0:00:04]}  Kc4 {[%clk 0:01:46]} 66. Kf3 {[%clk 0:00:04]}  Kb3 {[%clk 0:01:46]} 0-1


[Site "https://www.chess.com"]

[Event "Titled Tuesday Blitz March 08 Late 2022"]
[White "Piesik, Piotr"]
[Black "Martinez Reyes, Pedro Ramon"]
[WhiteFideId "1136194"]
[BlackFideId "3901807"]
[WhiteElo "2190"]
[BlackElo "2410"]
[Result "1-0"]
[Round "07"]
[TimeControl "180+1"]
[Date "2022.03.09"]
[WhiteClock "0:02:12"]
[BlackClock "0:02:31"]

1. Nf3 {[%clk 0:03:00]}  f5 {[%clk 0:02:57]} 2. d3 {[%clk 0:03:00]}  e6 {[%clk 0:02:55]} 3. e4 {[%clk 0:03:00]}  Nf6 {[%clk 0:02:52]} 4. e5 {[%clk 0:03:00]}  Nd5 {[%clk 0:02:52]} 5. c4 {[%clk 0:03:00]}  Nb6 {[%clk 0:02:53]} 6. d4 {[%clk 0:03:00]}  d6 {[%clk 0:02:50]} 7. Bg5 {[%clk 0:02:59]}  Be7 {[%clk 0:02:50]} 8. Bxe7 {[%clk 0:02:58]}  Qxe7 {[%clk 0:02:51]} 9. Nc3 {[%clk 0:02:57]}  O-O {[%clk 0:02:50]} 10. Be2 {[%clk 0:02:47]}  dxe5 {[%clk 0:02:50]} 11. Nxe5 {[%clk 0:02:47]}  N8d7 {[%clk 0:02:50]} 12. Nf3 {[%clk 0:02:42]}  c5 {[%clk 0:02:47]} 13. O-O {[%clk 0:02:42]}  cxd4 {[%clk 0:02:47]} 14. Nxd4 {[%clk 0:02:38]}  e5 {[%clk 0:02:48]} 15. Ndb5 {[%clk 0:02:35]}  Nf6 {[%clk 0:02:43]} 16. Qd6 {[%clk 0:02:20]}  Qxd6 {[%clk 0:02:42]} 17. Nxd6 {[%clk 0:02:21]}  Rb8 {[%clk 0:02:40]} 18. c5 {[%clk 0:02:20]}  Nbd7 {[%clk 0:02:32]} 19. Bc4+ {[%clk 0:02:19]}  Kh8 {[%clk 0:02:33]} 20. Nf7+ {[%clk 0:02:14]}  Rxf7 {[%clk 0:02:33]} 21. Bxf7 {[%clk 0:02:14]}  Nxc5 {[%clk 0:02:34]} 22. Rad1 {[%clk 0:02:13]}  e4 {[%clk 0:02:31]} 23. Rd8+ {[%clk 0:02:12]} 1-0


[Site "https://www.chess.com"]

[Event "Titled Tuesday Blitz March 08 Late 2022"]
[White "Pinheiro, Iung Alicio de O."]
[Black "Xu, Yi"]
[WhiteFideId "2104350"]
[BlackFideId "8605564"]
[WhiteElo "2621"]
[BlackElo "2471"]
[Result "0-1"]
[Round "07"]
[TimeControl "180+1"]
[Date "2022.03.08"]
[WhiteClock "0:00:06"]
[BlackClock "0:00:29"]

1. c4 {[%clk 0:02:58]}  Nf6 {[%clk 0:02:59]} 2. g3 {[%clk 0:02:56]}  e6 {[%clk 0:02:58]} 3. Bg2 {[%clk 0:02:53]}  d5 {[%clk 0:02:59]} 4. Nf3 {[%clk 0:02:54]}  Be7 {[%clk 0:02:58]} 5. O-O {[%clk 0:02:54]}  O-O {[%clk 0:02:57]} 6. d4 {[%clk 0:02:55]}  dxc4 {[%clk 0:02:57]} 7. Qc2 {[%clk 0:02:54]}  a6 {[%clk 0:02:56]} 8. a4 {[%clk 0:02:54]}  Bd7 {[%clk 0:02:56]} 9. Rd1 {[%clk 0:02:49]}  Bc6 {[%clk 0:02:56]} 10. Nc3 {[%clk 0:02:42]}  Bxf3 {[%clk 0:02:55]} 11. Bxf3 {[%clk 0:02:41]}  Nc6 {[%clk 0:02:54]} 12. Bxc6 {[%clk 0:02:41]}  bxc6 {[%clk 0:02:55]} 13. a5 {[%clk 0:02:31]}  Rb8 {[%clk 0:02:53]} 14. Na4 {[%clk 0:01:46]}  Qd5 {[%clk 0:02:45]} 15. Bd2 {[%clk 0:01:46]}  Rfd8 {[%clk 0:02:26]} 16. Rac1 {[%clk 0:01:36]}  Qh5 {[%clk 0:02:06]} 17. Be1 {[%clk 0:01:16]}  Ng4 {[%clk 0:02:00]} 18. h4 {[%clk 0:01:14]}  g5 {[%clk 0:01:48]} 19. Qe4 {[%clk 0:01:03]}  gxh4 {[%clk 0:01:42]} 20. f3 {[%clk 0:00:58]}  Nh6 {[%clk 0:01:27]} 21. g4 {[%clk 0:00:54]}  Qd5 {[%clk 0:01:26]} 22. Nc3 {[%clk 0:00:46]}  Qxe4 {[%clk 0:01:23]} 23. Nxe4 {[%clk 0:00:47]}  f5 {[%clk 0:01:20]} 24. gxf5 {[%clk 0:00:40]}  Nxf5 {[%clk 0:01:21]} 25. Bf2 {[%clk 0:00:40]}  Rxb2 {[%clk 0:01:13]} 26. Kf1 {[%clk 0:00:40]}  c5 {[%clk 0:00:59]} 27. dxc5 {[%clk 0:00:37]}  Rxd1+ {[%clk 0:00:57]} 28. Rxd1 {[%clk 0:00:38]}  h3 {[%clk 0:00:57]} 29. Ng3 {[%clk 0:00:28]}  c3 {[%clk 0:00:52]} 30. Nxf5 {[%clk 0:00:25]}  exf5 {[%clk 0:00:52]} 31. Rc1 {[%clk 0:00:25]}  c2 {[%clk 0:00:48]} 32. Be3 {[%clk 0:00:23]}  Rb1 {[%clk 0:00:44]} 33. Kf2 {[%clk 0:00:20]}  Bxc5 {[%clk 0:00:29]} 34. Rxc2 {[%clk 0:00:06]}  Bxe3+ {[%clk 0:00:29]} 35. Kxe3 {[%clk 0:00:06]}  h2 {[%clk 0:00:29]} 0-1


[Site "https://www.chess.com"]